[Event "1st Serbian League 2022"]
[Site "Vrnjacka Banja"]
[Date "2022.09.23"]
[Round "4.14"]
[White "Bogosavljevic, Boban"]
[Black "Ivanisevic, Ivan"]
[Result "1-0"]
[ECO "A37"]
[WhiteElo "2533"]
[BlackElo "2547"]
[Annotator "TA"]
[PlyCount "103"]
[EventDate "2022.09.20"]
[EventType "team-tourn"]
[EventCountry "SRB"]
[SourceTitle "playchess.com"]
[Source "ChessBase"]
[SourceQuality "1"]
[TimeControl "40/5400+30:1800+30"]

{[%evp 11,103,8,22,5,12,-5,20,18,6,-5,30,23,30,33,38,63,77,7,66,64,46,28,43,55,131,143,127,121,114,114,244,258,238,259,242,254,236,255,245,103,104,122,118,22,140,125,195,76,66,71,135,135,151,134,137,102,104,100,116,21,89,0,126,125,100,110,102,44,51,12,18,10,14,0,2,9,989,685,1808,1240,4171,3604,2011,1648,975,1703,1403,922,12840,12840,12840,12839,12842,12843]} 1. Nf3 {[%emt 0:02:27]} c5 {[%emt 0:00:30]} 2. c4 {[%emt 0:00:07]} g6 {[%emt 0:01:26]} 3. Nc3 {[%emt 0:02:59]} Bg7 {[%emt 0:00:08]} 4. g3 {[%emt 0:00:37]} Nc6 {[%emt 0:00:06]} 5. Bg2 {[%emt 0:00:05]} d6 {[%emt 0:00:17]} 6. O-O {[%emt 0:02:01]} h5 {[%emt 0:00:29] 6...e6 gains popularity.} 7. e3 {[%emt 0:04:24] A37: Symmetrical English vs ...g6: 4 Bg2 Bg7 5 Nf3.} Nh6 {[%emt 0:05:48]} 8. d4 {[%emt 0:01:31]} Bg4 {[%emt 0:05:43]} 9. dxc5 {[%emt 0:08:09] The position is equal.} dxc5 {[%emt 0:03:21] [#]} 10. Qb3 $146 {[%emt 0:05:56]} ({Predecessor:} 10. h3 Bd7 11. e4 Qc8 12. Nd5 h4 13. Bf4 Kf8 14. g4 Bxb2 15. Qd2 Bg7 16. Nc7 Bxg4 17. hxg4 {½-½ (40) Gagare,S (2501)-Ivanisevic,I (2583) St Petersburg 2018}) 10... Qc8 {[%emt 0:14:48]} 11. Nd5 {[%emt 0:08:47]} Nf5 {[%emt 0:42:33]} 12. Bd2 {[%emt 0:08:32][%cal Bc1d2,Bd2c3,Bc3e5][%mdl 32]} h4 {[%emt 0:01:12]} 13. Bc3 {[%emt 0:01:23]} hxg3 {[%emt 0:02:03]} 14. hxg3 {[%emt 0:01:38]} (14. fxg3 $16 {Strongly threatening Bxg7.} O-O 15. Rae1) 14... Bxf3 {[%emt 0:09:48]} (14... f6 $11) 15. Bxf3 $14 {[%emt 0:00:22]} Kf8 {[%emt 0:00:07]} 16. Bg2 {[%emt 0:08:12] This bishop pair is nice.} Rb8 {[%emt 0:01:17]} 17. Rad1 {[%emt 0:09:05]} Be5 {[%emt 0:01:06]} (17... Nh6 $14) 18. Bxe5 $1 $16 {[%emt 0:16:02]} Nxe5 {[%emt 0:00:07]} 19. Qc3 {[%emt 0:02:51]} f6 {[%emt 0:00:49]} 20. Nf4 {[%emt 0:02:25]} g5 {[%emt 0:01:24] [#]} (20... Ng7 $16 {was worth a try.}) 21. Rd8+ $3 $18 {[%emt 0:00:14][%mdl 512]} Qxd8 {[%emt 0:01:07]} 22. Ne6+ {[%emt 0:00:05]} Kf7 {[%emt 0:00:23]} 23. Nxd8+ {[%emt 0:00:09]} Rbxd8 {[%emt 0:00:04]} 24. Qc2 {[%emt 0:02:42]} e6 {[%emt 0:00:11]} 25. Rd1 {[%emt 0:01:18]} (25. Bxb7 $18 {and White stays clearly on top. Threatens to win with Rd1.} Rd7 26. Be4) 25... b6 $16 {[%emt 0:00:53]} (25... Rxd1+ $2 26. Qxd1 a6 27. Qb3 $18) 26. Rxd8 {[%emt 0:01:32]} Rxd8 {[%emt 0:00:05]} 27. Be4 {[%emt 0:08:05]} (27. Qa4 $16) 27... Nd6 {[%emt 0:00:06]} (27... g4 $1 $11) 28. f4 $1 {[%emt 0:01:43]} Nexc4 {[%emt 0:03:39]} (28... gxf4 $16 29. exf4 f5) 29. Bd3 {[%emt 0:00:29]} (29. Bf3 $18 {has better winning chances.} Ke7 30. Bh5) 29... Nxe3 {[%emt 0:01:18]} 30. Qh2 {[%emt 0:00:51]} Ndf5 {[%emt 0:03:27]} ({Black should play} 30... Ke7) 31. Qh7+ {[%emt 0:00:12]} Kf8 {[%emt 0:00:06]} 32. Bxf5 {[%emt 0:01:04] Really sharp!} Nxf5 {[%emt 0:00:48][%mdl 4096] Endgame KQ-KRN} 33. g4 {[%emt 0:00:31]} Rd1+ {[%emt 0:00:26]} 34. Kf2 {[%emt 0:00:08]} Nd4 {[%emt 0:00:31]} 35. Qh8+ {[%emt 0:00:48]} (35. fxg5 $1 $16 Rd2+ 36. Ke3 Re2+ 37. Kd3 fxg5 38. b4) 35... Kf7 {[%emt 0:00:56]} (35... Ke7 $11) 36. Qh7+ {[%emt 0:00:07]} Kf8 {[%emt 0:00:05]} 37. fxg5 $1 {[%emt 0:00:56]} Rd2+ {[%emt 0:00:20]} ({Of course not} 37... fxg5 $6 38. Qh6+ Kf7 39. Qxg5 $11) 38. Ke3 {[%emt 0:00:21]} Re2+ {[%emt 0:00:16]} 39. Kd3 {[%emt 0:00:21]} (39. Kf4 $16 e5+ 40. Kg3 fxg5 41. Qh6+ Ke7 42. Qxg5+ Kd6 43. Qd8+ Ke6 44. Qe8+ Kd6 45. g5 Re3+ 46. Kg2 Re2+ 47. Kf1 Rxb2 48. Qd8+ Ke6 49. Qf6+ Kd5 50. g6) 39... fxg5 $14 {[%emt 0:00:11]} 40. Qh6+ {[%emt 0:00:40]} Kf7 {[%emt 0:00:16]} 41. Qxg5 {[%emt 0:04:33][%cal Ob2b4]} Rxb2 {[%emt 0:03:14]} 42. Qf4+ {[%emt 0:13:12]} Kg6 {[%emt 0:14:20]} 43. g5 {[%emt 0:02:43]} Kh5 $2 {[%emt 0:02:49][%mdl 8192]} (43... Rxa2 $2 44. Qf6+ Kh5 45. g6 $18) (43... Nf5 $11) 44. Qf6 $1 $18 {[%emt 0:03:02] Hoping for g6. White is clearly winning.} Rg2 {[%emt 0:05:20]} 45. Qf7+ {[%emt 0:04:13]} Kg4 {[%emt 0:00:29]} 46. g6 {[%emt 0:00:32] And now g7 would win.} Rg3+ {[%emt 0:00:19]} 47. Kd2 $1 {[%emt 0:03:15]} Rg2+ {[%emt 0:03:00] [#]} 48. Ke1 $1 {[%emt 0:00:51]} Nf3+ {[%emt 0:02:37] [#]} 49. Kd1 $1 {[%emt 0:00:07]} (49. Kf1 Kg3) 49... Ne5 {[%emt 0:02:02]} 50. Qxe6+ {[%emt 0:00:38]} Kf4 {[%emt 0:00:01]} 51. g7 {[%emt 0:00:45]} Ng4 {[%emt 0:02:08]} 52. g8=Q {[%emt 0:01:55] Weighted Error Value: White=0.25 (precise) /Black=0.30} 1-0

[Event "1st Serbian League 2022"]
[Site "Vrnjacka Banja"]
[Date "2022.09.23"]
[Round "4.15"]
[White "Perunovic, Milos"]
[Black "Vuckovic, Bojan"]
[Result "1/2-1/2"]
[ECO "B30"]
[WhiteElo "2542"]
[BlackElo "2559"]
[Annotator "TA"]
[PlyCount "104"]
[EventDate "2022.09.20"]
[EventType "team-tourn"]
[EventCountry "SRB"]
[SourceTitle "playchess.com"]
[Source "ChessBase"]
[SourceQuality "1"]
[TimeControl "40/5400+30:1800+30"]

{[%evp 9,104,0,24,17,15,20,31,32,39,39,75,62,80,54,63,28,27,7,9,9,10,0,0,0,0,0,7,0,0,-37,-41,-37,-37,-60,-57,-51,-48,-52,-58,-94,-97,-97,-98,-102,-85,-91,-91,-95,-96,-96,-94,-107,-86,-119,-112,-130,-101,-100,-101,-103,-103,-103,-103,-103,-103,-103,-103,-103,-85,-85,-85,-85,-85,-85,-22,-85,-85,-85,-85,-85,-85,-85,-85,-85,-85,-85,-85,-85,-85,-85,-85,-85,0,-85,0,-85,0]} 1. e4 {[%emt 0:01:20]} c5 {[%emt 0:00:16]} 2. Nf3 {[%emt 0:00:25]} Nc6 {[%emt 0:00:18]} 3. Bc4 {[%emt 0:01:00]} e6 {[%emt 0:16:03]} 4. O-O {[%emt 0:00:24]} Nf6 {[%emt 0:01:37]} 5. Re1 {[%emt 0:00:39]} a6 {[%emt 0:11:14][%cal Of6e4]} 6. d4 {[%emt 0:01:06] B30: Sicilian: 2...Nc6 3 Bb5, lines without ...g6.} cxd4 {[%emt 0:02:23]} 7. Nxd4 {[%emt 0:00:07]} Qc7 {[%emt 0:00:38]} 8. Nxc6 {[%emt 0:00:20] White is slightly better.} Qxc6 {[%emt 0:01:26] [#]} 9. Nd2 $146 {[%emt 0:04:11]} ({Predecessor:} 9. Bd3 d6 10. Nc3 Be7 11. f4 b5 12. a3 e5 13. Qe2 O-O 14. Nd5 Nxd5 15. exd5 Qxd5 {0-1 (31) Totterstrom,R-Olander,A (1990) Salo 2011}) 9... Be7 {[%emt 0:06:23]} 10. e5 {[%emt 0:16:31]} Nd5 {[%emt 0:00:15]} 11. Bxd5 {[%emt 0:05:19]} Qxd5 {[%emt 0:01:57]} 12. c4 {[%emt 0:00:20]} (12. Qg4 $5 {[%cal Rg4g7]} O-O 13. Nc4 $14) 12... Qd3 {[%emt 0:05:49]} 13. Ne4 {[%emt 0:00:09]} Qxd1 {[%emt 0:00:45]} 14. Rxd1 {[%emt 0:00:06]} b5 {[%emt 0:03:42]} 15. c5 {[%emt 0:16:37]} Bb7 {[%emt 0:02:50]} 16. Nd6+ {[%emt 0:00:45]} Bxd6 {[%emt 0:00:07]} 17. Rxd6 {[%emt 0:00:04]} f6 {[%emt 0:04:26][%cal Bf7f6,Bf6e5,Be5e4][%mdl 32]} 18. Bd2 {[%emt 0:05:21]} fxe5 {[%emt 0:05:30]} 19. a4 {[%emt 0:05:33]} bxa4 $1 {[%emt 0:02:28]} 20. Rxa4 {[%emt 0:01:13]} Bc6 {[%emt 0:02:41]} 21. Rg4 {[%emt 0:01:33]} O-O {[%emt 0:00:54]} 22. Rd3 {[%emt 0:05:10]} e4 {[%emt 0:12:13]} 23. Rdg3 {[%emt 0:00:07]} g6 {[%emt 0:00:06]} 24. Bf4 {[%emt 0:09:54]} Rf5 {[%emt 0:02:25]} 25. Bd6 {[%emt 0:00:17]} a5 {[%emt 0:00:50]} 26. h4 {[%emt 0:01:24]} Kf7 {[%emt 0:00:42]} 27. Rb3 {[%emt 0:07:11]} a4 {[%emt 0:01:39]} 28. Rb4 {[%emt 0:00:49]} a3 {[%emt 0:05:13]} 29. bxa3 {[%emt 0:00:05]} Rxa3 {[%emt 0:00:04]} 30. Rb2 {[%emt 0:02:16]} e3 {[%emt 0:02:34]} 31. fxe3 {[%emt 0:01:16]} Rxe3 {[%emt 0:00:04]} 32. Rf4 {[%emt 0:04:20]} e5 {[%emt 0:01:07]} 33. Rxf5+ {[%emt 0:00:15]} gxf5 $17 {[%emt 0:00:06][%cal Bg6f5,Bf5f4,Bf4f3][%mdl 4128] Endgame KRB-KRB} 34. Kf2 {[%emt 0:00:10]} f4 {[%emt 0:03:36]} 35. Re2 {[%emt 0:00:27]} Rxe2+ {[%emt 0:01:05]} 36. Kxe2 {[%emt 0:00:05] KB-KB} Ke6 {[%emt 0:00:20]} 37. Kf2 {[%emt 0:00:08]} h5 {[%emt 0:01:55]} 38. g3 {[%emt 0:00:36]} f3 {[%emt 0:00:19]} 39. Ke3 {[%emt 0:00:15]} e4 {[%emt 0:00:52]} 40. Kf2 {[%emt 0:00:45]} Kd5 {[%emt 0:00:40]} 41. Ke3 {[%emt 0:30:05]} Bb5 {[%emt 0:04:56]} (41... Kc4 $17) 42. Be7 {[%emt 0:00:00]} (42. g4 $1 $11 {keeps the balance.}) 42... Bf1 {[%emt 0:01:13]} 43. Bd6 {[%emt 0:00:00][%cal Og3g4]} Bh3 {[%emt 0:00:28]} 44. Be7 {[%emt 0:00:00]} Bg4 {[%emt 0:04:30]} 45. Bd6 {[%emt 0:00:00]} Kc4 {[%emt 0:00:12]} 46. Be7 {[%emt 0:00:00]} Kc3 {[%emt 0:00:32]} 47. Bf6+ {[%emt 0:00:00]} Kc2 {[%emt 0:00:14]} 48. Bg5 {[%emt 0:00:00]} Be6 {[%emt 0:00:56]} 49. Bf4 {[%emt 0:00:00]} Kd1 {[%emt 0:00:17] [#] Hoping for ...Ke1.} 50. Kf2 {[%emt 0:00:00]} Kc2 {[%emt 0:00:15]} 51. Ke3 {[%emt 0:00:00]} Kd1 {[%emt 0:00:04] Strongly threatening ...Ke1.} 52. Kf2 {[%emt 0:00:00]} Kc2 {[%emt 0:00:05] Weighted Error Value: White=0.09 (flawless) /Black=0.10 (very precise)} (52... Bf7 $17) 1/2-1/2

[Event "1st Serbian League 2022"]
[Site "Vrnjacka Banja"]
[Date "2022.09.23"]
[Round "4.17"]
[White "Kosic, Dragan"]
[Black "Zajic, Milan"]
[Result "1/2-1/2"]
[ECO "E12"]
[WhiteElo "2399"]
[BlackElo "2402"]
[Annotator "TA"]
[PlyCount "128"]
[EventDate "2022.09.20"]
[EventType "team-tourn"]
[EventCountry "SRB"]
[SourceTitle "playchess.com"]
[Source "ChessBase"]
[SourceQuality "1"]
[TimeControl "40/5400+30:1800+30"]

{[%evp 18,128,-8,-15,-5,-6,-7,0,16,10,27,1,12,0,0,0,0,0,53,53,53,53,58,55,66,58,63,60,144,118,150,63,62,68,67,56,64,62,112,92,85,91,66,67,112,115,123,120,114,88,73,68,63,80,51,70,53,35,35,35,178,153,213,42,42,35,326,301,266,262,212,143,263,188,240,94,6650,6650,5119,2002,1941,540,5435,4147,29975,29976,1907,22,23,0,0,0,0,0,0,0,0,0,0,0,0,0,0,0,0,0,0,0,0,0,0,0,0]} 1. d4 {[%emt 0:00:04]} Nf6 {[%emt 0:00:06]} 2. Nf3 {[%emt 0:00:08]} e6 {[%emt 0:00:06]} 3. c4 {[%emt 0:00:09]} b6 {[%emt 0:00:09]} 4. a3 {[%emt 0:00:30]} Bb7 {[%emt 0:07:12]} 5. Nc3 {[%emt 0:00:07]} d5 {[%emt 0:03:22]} 6. Bg5 {[%emt 0:00:45]} Be7 {[%emt 0:02:39]} 7. Bxf6 {[%emt 0:01:08]} Bxf6 {[%emt 0:00:09]} 8. cxd5 {[%emt 0:00:10]} exd5 {[%emt 0:00:18]} 9. g3 {[%emt 0:00:10]} O-O {[%emt 0:00:24]} 10. Bg2 {[%emt 0:00:13]} Na6 {[%emt 0:13:34] E12: Queen's Indian: Unusual White 4th moves, 4 a3, 4 Nc3 Bb7 5 a3 and 4 Nc3 Bb7 .} 11. O-O {[%emt 0:05:08]} c5 {[%emt 0:00:15]} 12. e3 {[%emt 0:08:23] [#]} Rc8 $146 {[%emt 0:00:26]} ({Predecessor:} 12... Qe7 13. Qc2 Rfd8 14. Rad1 Nc7 15. Rfe1 Ne6 16. Rd2 Rab8 17. Red1 g6 18. Qb1 Ba8 {½-½ (50) Dimitrov,R (2510)-Borsuk,K (2425) Primorsko 2021}) 13. Ne5 {[%emt 0:04:17]} Re8 {[%emt 0:44:00]} 14. f4 {[%emt 0:07:11]} Nc7 {[%emt 0:03:51]} 15. Qf3 {[%emt 0:07:31]} (15. Qh5 g6 16. Qd1 Bg7) 15... Qe7 {[%emt 0:01:42]} 16. Rad1 {[%emt 0:00:51]} Rcd8 {[%emt 0:00:49]} 17. g4 {[%emt 0:06:47][%cal Bg3g4,Bg4g5][%mdl 32]} Ba8 {[%emt 0:08:40]} (17... h6 $11) 18. g5 $14 {[%emt 0:01:37]} Bxe5 {[%emt 0:00:17]} 19. fxe5 {[%emt 0:00:07]} Bb7 {[%emt 0:02:14]} 20. h4 {[%emt 0:01:14]} Bc6 {[%emt 0:02:07]} 21. Qg3 {[%emt 0:00:52]} Ne6 {[%emt 0:01:00]} 22. Rf2 {[%emt 0:01:31]} b5 {[%emt 0:01:45]} (22... Rf8 $14) 23. Ne2 {[%emt 0:04:19]} a5 {[%emt 0:02:58]} 24. Nf4 {[%emt 0:03:27]} (24. dxc5 $1 $16 Qxc5 25. Nd4 (25. Qf3 Rf8 $16)) 24... b4 {[%emt 0:01:41]} 25. axb4 $1 {[%emt 0:00:29]} axb4 {[%emt 0:00:57]} 26. Bh3 {[%emt 0:18:19]} Nxf4 {[%emt 0:00:38]} 27. exf4 {[%emt 0:02:57][%cal Be3f4,Bf4f5,Bf5e6][%mdl 32]} Bd7 {[%emt 0:00:26]} (27... Ba4 $14 28. Rc1 cxd4) 28. f5 $1 $16 {[%emt 0:02:58]} cxd4 {[%emt 0:00:58]} 29. Re1 {[%emt 0:01:37]} d3 {[%emt 0:00:41]} 30. Qxd3 {[%emt 0:01:57]} Qc5 {[%emt 0:00:17] [#]} 31. e6 $1 {[%emt 0:07:56]} fxe6 {[%emt 0:00:46]} 32. fxe6 {[%emt 0:01:49][%cal Oe6e7]} Re7 {[%emt 0:01:14]} 33. Qf3 {[%emt 0:06:27] White has more active pieces. The black rooks are badly placed.} Bb5 {[%emt 0:00:46]} 34. Re5 {[%emt 0:00:52] aiming for Rf5.} Qc1+ $1 {[%emt 0:00:31]} (34... Qd4 $2 35. Rf5 Ree8 36. e7 Qxf2+ 37. Qxf2 $18) 35. Kh2 {[%emt 0:01:45] And now Rf5 would win.} Qc7 {[%emt 0:00:21]} 36. Qf4 {[%emt 0:00:12]} Bd3 {[%emt 0:00:37]} 37. h5 {[%emt 0:00:40][%cal Bh4h5,Bh5h6][%mdl 32]} Be4 {[%emt 0:00:27]} 38. h6 {[%emt 0:02:51]} Rde8 {[%emt 0:00:27]} (38... g6 $14) 39. Bg4 $18 {[%emt 0:00:53]} b3 {[%emt 0:00:37] [#]} (39... Ra8 $16 40. hxg7 Rxg7) 40. Bh5 $2 {[%emt 0:00:59]} ({Only move:} 40. Kg3 $1 $18) 40... g6 $14 {[%emt 0:00:22]} 41. Bg4 {[%emt 0:30:19]} Qb8 $2 {[%emt 0:16:19][%mdl 8192] [#]} (41... Rc8 $14) 42. Qf7+ $3 $18 {[%emt 0:00:00][%mdl 512]} Kh8 {[%emt 0:00:19]} 43. Qf6+ {[%emt 0:00:00]} Kg8 {[%emt 0:00:05]} 44. Rf4 {[%emt 0:00:00]} Qd8 {[%emt 0:05:39]} (44... Qc7 $16 {was worth a try.}) 45. Kg3 {[%emt 0:00:00]} Qb8 {[%emt 0:05:12]} ({Not} 45... Rf8 46. Qxf8+ Qxf8 47. Rxf8+ Kxf8 48. Kf4 $16) (45... Qc7 $142 46. Bh3 (46. Bf3 Bxf3 47. Kxf3 d4 $11) 46... Qd8) 46. Be2 {[%emt 0:00:00] The board is on fire.} (46. Bf3 $18) 46... Qd8 $2 {[%emt 0:04:56][%mdl 8192]} (46... Qa7 $16 47. Kh3 (47. Rf2 Rc8 $14) 47... Rc8) 47. Bb5 {[%emt 0:00:00][%cal Of6f7] White threatens Qf7+! and mate.} Rf8 {[%emt 0:00:25] Prevents Qf7+.} 48. Qxf8+ {[%emt 0:00:00]} Qxf8 {[%emt 0:00:03]} 49. Rxf8+ {[%emt 0:00:00]} Kxf8 {[%emt 0:00:03][%mdl 4096] Endgame KRB-KRB} 50. Bd7 {[%emt 0:00:00] Intending Kf4 and mate.} Bf5 {[%emt 0:00:52]} 51. Kf4 {[%emt 0:00:00]} d4 {[%emt 0:00:15]} 52. Rb5 $2 {[%emt 0:00:00]} (52. Re1 $18 {Black must now prevent Ke5.} d3 53. Ke5) 52... Bxe6 $11 {[%emt 0:00:23]} 53. Bxe6 {[%emt 0:00:00]} Rxe6 {[%emt 0:00:01] The position is equal.} 54. Rxb3 {[%emt 0:00:00] Strongly threatening Rb8+. KR-KR} Re7 {[%emt 0:02:05]} 55. Rb8+ {[%emt 0:00:00]} Kf7 {[%emt 0:00:02]} 56. Rd8 {[%emt 0:04:19]} Rb7 {[%emt 0:00:28]} 57. Rxd4 {[%emt 0:02:19]} Rxb2 {[%emt 0:00:09]} 58. Rd7+ {[%emt 0:00:04]} Kg8 {[%emt 0:00:29]} 59. Rd8+ {[%emt 0:00:28]} Kf7 {[%emt 0:00:01]} 60. Rh8 {[%emt 0:00:23]} Rb4+ {[%emt 0:00:25]} 61. Kf3 $1 {[%emt 0:00:22]} Rb3+ {[%emt 0:00:17]} 62. Kf4 {[%emt 0:01:22]} Rb4+ {[%emt 0:00:04]} 63. Kf3 {[%emt 0:00:03]} Rb3+ {[%emt 0:00:04]} 64. Kf4 {[%emt 0:00:03]} Rb4+ {[%emt 0:04:05] Black defended with fortune.  Weighted Error Value: White=0.27 (precise) /Black=0.31} 1/2-1/2

[Event "1st Serbian League 2022"]
[Site "Vrnjacka Banja"]
[Date "2022.09.23"]
[Round "4.18"]
[White "Stankovic, Milos"]
[Black "Lazic, Miroljub"]
[Result "1-0"]
[ECO "C54"]
[WhiteElo "2439"]
[BlackElo "2300"]
[Annotator "TA"]
[PlyCount "65"]
[EventDate "2022.09.20"]
[EventType "team-tourn"]
[EventCountry "SRB"]
[SourceTitle "playchess.com"]
[Source "ChessBase"]
[SourceQuality "1"]
[TimeControl "40/5400+30:1800+30"]

{[%evp 9,65,0,7,-43,-19,-56,-52,-61,-48,-48,-10,-15,-18,-15,0,-4,-10,-52,-50,-36,-42,-45,-50,-52,-31,-55,-54,-64,-60,-84,-90,-98,-83,-160,-165,-163,-147,-147,-144,-156,36,35,102,97,140,127,311,176,204,177,167,183,1255,1133,2100,2101,1537,1452]} 1. e4 {[%emt 0:00:14]} e5 {[%emt 0:00:20][%cal Be7e5,Be5d4][%mdl 32]} 2. Nf3 {[%emt 0:00:31]} Nc6 {[%emt 0:00:04]} 3. Bc4 {[%emt 0:00:29]} Bc5 {[%emt 0:00:10]} 4. c3 {[%emt 0:00:29]} Nf6 {[%emt 0:00:16]} 5. d4 {[%emt 0:00:30]} exd4 {[%emt 0:00:02]} 6. b4 {[%emt 0:00:34] C54: Giuoco Piano: 4 c3 Nf6, main lines with 5 d4 and 5 d3.} ({Better is} 6. e5 $11 d5 7. Bb5 (7. exf6 dxc4 8. fxg7 Rg8 $15)) 6... Be7 {[%emt 0:22:42]} 7. e5 {[%emt 0:00:25]} Ne4 {[%emt 0:00:40]} 8. b5 {[%emt 0:00:31] Black is slightly better.} Na5 {[%emt 0:10:41]} 9. Bd3 {[%emt 0:00:29]} Nc5 {[%emt 0:05:13]} 10. cxd4 {[%emt 0:01:28]} Nxd3+ {[%emt 0:00:16]} 11. Qxd3 {[%emt 0:00:30]} d5 {[%emt 0:09:56]} 12. O-O {[%emt 0:04:06]} a6 {[%emt 0:01:46] [#]} 13. Ba3 $146 {[%emt 0:10:05]} ({Predecessor:} 13. Nc3 axb5 14. Qxb5+ c6 15. Qd3 O-O 16. Ne2 b6 17. Re1 c5 18. Nf4 c4 19. Qc2 {0-1 (47) Aditya,V (2127)-Kuybokarov,T (2583) Dubai 2022}) 13... axb5 {[%emt 0:06:05] [#] ...b4 is the strong threat.} 14. Bxe7 {[%emt 0:03:47]} Qxe7 {[%emt 0:00:09]} 15. Qxb5+ {[%emt 0:02:25]} c6 {[%emt 0:00:31]} 16. Qd3 {[%emt 0:00:47]} O-O {[%emt 0:07:44]} 17. Nbd2 {[%emt 0:07:45]} Be6 {[%emt 0:00:30]} 18. a4 {[%emt 0:07:19]} Ra6 {[%emt 0:03:53]} 19. Qc3 {[%emt 0:07:36]} Rfa8 {[%emt 0:00:59]} 20. Rfb1 {[%emt 0:04:06]} h6 {[%emt 0:07:57]} 21. h3 {[%emt 0:04:37]} (21. Qb4 $142 Qxb4 22. Rxb4) 21... Nc4 $17 {[%emt 0:04:08]} 22. Nb3 {[%emt 0:09:04]} Rxa4 {[%emt 0:02:06]} 23. Nc5 {[%emt 0:00:57]} Ra3 {[%emt 0:03:18]} (23... Rxa1 24. Rxa1 Rxa1+ 25. Qxa1 $17) 24. Qc1 {[%emt 0:00:11] [#]} b6 $2 {[%emt 0:00:41]} (24... R3a7 $1 $17 {Hoping for ...Bf5.} 25. Nxe6 Qxe6 26. Rxa7 Rxa7) 25. Rxa3 $14 {[%emt 0:00:48]} Nxa3 {[%emt 0:08:28]} ({Black should try} 25... Rxa3 $14 26. Rxb6 Qa7) 26. Rxb6 $16 {[%emt 0:00:50]} Bf5 {[%emt 0:01:53]} 27. Qf4 {[%emt 0:03:19]} Bg6 {[%emt 0:00:27] Black cannot hold the game after this.} (27... Nc4 $2 28. Rb7 Nd2 29. Nxd2 $18 (29. Rxe7 Ra1+ 30. Ne1 Rxe1+ 31. Kh2 Nf1+ 32. Kh1 Nd2+ 33. Kh2 Nf1+ 34. Kh1 Nd2+ 35. Kh2 $11)) (27... Be6 $16) 28. Rxc6 {[%emt 0:00:20]} (28. Rb7 $142 Qe8 29. e6) 28... Nc4 {[%emt 0:00:33]} 29. Nh4 {[%emt 0:03:03] Pair of Knights!} Nd2 {[%emt 0:01:18]} 30. Qxd2 {[%emt 0:06:38]} ({Not} 30. Nxg6 Ra1+ 31. Kh2 Nf1+ 32. Kh1 Nd2+ 33. Kh2 Nf1+ 34. Kh1 Nd2+ 35. Kh2 $11) 30... Ra1+ $2 {[%emt 0:00:37]} (30... Qxh4 31. Qe3 Bf5) 31. Kh2 $18 {[%emt 0:00:09] White is clearly winning.} Qxh4 {[%emt 0:00:02]} 32. Rc8+ {[%emt 0:00:55]} Kh7 {[%emt 0:00:01]} 33. Nd7 {[%emt 0:00:19] Weighted Error Value: White=0.17 (very precise) /Black=0.33} 1-0